[Event "*** Titled Tuesday Blitz"]
[Site "Chess.com"]
[Date "2020.04.14"]
[Round "4"]
[White "TigrVShlyape"]
[Black "hitaman"]
[Result "1/2-1/2"]
[WhiteElo "2853"]
[BlackElo "2663"]
[TimeControl "180+1"]
[EndTime "10:41:11 PDT"]
[Termination "Game drawn by agreement"]

1. d4 {[%clk 0:03:00.9]} 1... d5 {[%clk 0:02:59.4]} 2. Nf3 {[%clk 0:03:00.5]}
2... Nf6 {[%clk 0:02:59]} 3. Bf4 {[%clk 0:02:59.1]} 3... c5 {[%clk 0:02:58.5]}
4. e3 {[%clk 0:02:58.9]} 4... e6 {[%clk 0:02:58.5]} 5. c3 {[%clk 0:01:46.9]}
5... Bd6 {[%clk 0:02:55.2]} 6. Bb5+ {[%clk 0:01:44.8]} 6... Nc6 {[%clk
0:02:52.9]} 7. Bxc6+ {[%clk 0:01:45.1]} 7... bxc6 {[%clk 0:02:52.8]} 8. Bxd6
{[%clk 0:01:45.4]} 8... Qxd6 {[%clk 0:02:53.2]} 9. Qa4 {[%clk 0:01:45.9]} 9...
cxd4 {[%clk 0:02:29.2]} 10. cxd4 {[%clk 0:01:45.3]} 10... O-O {[%clk 0:02:28.7]}
11. O-O {[%clk 0:01:43.3]} 11... c5 {[%clk 0:02:24.4]} 12. Qa3 {[%clk
0:01:42.9]} 12... Ne4 {[%clk 0:02:24]} 13. Rc1 {[%clk 0:01:42.5]} 13... cxd4
{[%clk 0:02:22.5]} 14. Qxd6 {[%clk 0:01:37.7]} 14... Nxd6 {[%clk 0:02:23.4]} 15.
Nxd4 {[%clk 0:01:29.5]} 15... Bd7 {[%clk 0:02:22.8]} 16. Nd2 {[%clk 0:01:28]}
16... Rfc8 {[%clk 0:02:21.9]} 17. f4 {[%clk 0:01:26.8]} 17... Kf8 {[%clk
0:02:11.1]} 18. Kf2 {[%clk 0:01:26.1]} 18... Ke7 {[%clk 0:02:11.3]} 19. b3
{[%clk 0:01:22.4]} 19... f6 {[%clk 0:02:09.2]} 20. N4f3 {[%clk 0:01:19.6]} 20...
Bb5 {[%clk 0:02:04.6]} 21. Nd4 {[%clk 0:01:16.3]} 21... Bd7 {[%clk 0:02:03.2]}
22. N4f3 {[%clk 0:01:14.4]} 22... Bb5 {[%clk 0:02:02.5]} 23. Nd4 {[%clk
0:01:06]} 23... Be8 {[%clk 0:01:59]} 24. h3 {[%clk 0:01:03.9]} 24... a5 {[%clk
0:01:56.4]} 25. a3 {[%clk 0:01:02.7]} 25... e5 {[%clk 0:01:47.9]} 26. fxe5
{[%clk 0:01:01.8]} 26... fxe5 {[%clk 0:01:48.8]} 27. Ne2 {[%clk 0:01:00.1]}
27... Rab8 {[%clk 0:01:44.4]} 28. Rxc8 {[%clk 0:00:53.1]} 28... Rxc8 {[%clk
0:01:39.9]} 29. Rc1 {[%clk 0:00:53.5]} 29... Rxc1 {[%clk 0:01:30.3]} 30. Nxc1
{[%clk 0:00:53]} 30... Ke6 {[%clk 0:01:31.2]} 31. Nd3 {[%clk 0:00:51.7]} 31...
d4 {[%clk 0:01:24.9]} 32. exd4 {[%clk 0:00:50.9]} 32... exd4 {[%clk 0:01:25.8]}
33. Kf3 {[%clk 0:00:37.7]} 33... Bb5 {[%clk 0:01:22.3]} 34. Nc5+ {[%clk
0:00:33.3]} 34... Kd5 {[%clk 0:01:20.9]} 35. b4 {[%clk 0:00:32]} 35... a4 {[%clk
0:01:14.9]} 36. Nce4 {[%clk 0:00:31]} 36... Nxe4 {[%clk 0:00:46.5]} 37. Nxe4
{[%clk 0:00:30.6]} 37... Bc6 {[%clk 0:00:47.4]} 38. Nd2 {[%clk 0:00:29.7]} 38...
Ke5+ {[%clk 0:00:47]} 39. Kf2 {[%clk 0:00:29.5]} 39... Bd5 {[%clk 0:00:46.9]}
40. g3 {[%clk 0:00:29.3]} 40... h6 {[%clk 0:00:38.7]} 41. Ke2 {[%clk 0:00:29]}
41... Bc6 {[%clk 0:00:31.2]} 42. Nf3+ {[%clk 0:00:28.1]} 42... Ke4 {[%clk
0:00:24.5]} 43. Nd2+ {[%clk 0:00:28]} 43... Ke5 {[%clk 0:00:24.6]} 44. Nf3+
{[%clk 0:00:28.1]} 44... Ke4 {[%clk 0:00:24.9]} 45. Nd2+ {[%clk 0:00:28.1]}
45... Kd5 {[%clk 0:00:21.3]} 46. h4 {[%clk 0:00:25.5]} 46... Bd7 {[%clk
0:00:19.8]} 47. Kf2 {[%clk 0:00:25.3]} 47... Bg4 {[%clk 0:00:19.1]} 48. Ke1
{[%clk 0:00:21.3]} 48... d3 {[%clk 0:00:19.2]} 49. Nf1 {[%clk 0:00:20.7]} 49...
Kd4 {[%clk 0:00:19.1]} 50. Kd2 {[%clk 0:00:20.9]} 50... Bf5 {[%clk 0:00:18.1]}
51. Ne3 {[%clk 0:00:21.3]} 51... Be6 {[%clk 0:00:18.2]} 52. Ng2 {[%clk
0:00:20.7]} 52... Ke4 {[%clk 0:00:17.4]} 53. Nf4 {[%clk 0:00:20.6]} 53... Bc4
{[%clk 0:00:18]} 54. Nh5 {[%clk 0:00:20.4]} 54... g6 {[%clk 0:00:16.9]} 55. Nf4
{[%clk 0:00:19.9]} 55... g5 {[%clk 0:00:17]} 56. hxg5 {[%clk 0:00:20.2]} 56...
hxg5 {[%clk 0:00:17.9]} 57. Ng6 {[%clk 0:00:19.3]} 57... Kf5 {[%clk 0:00:15.1]}
58. Ne7+ {[%clk 0:00:19]} 58... Kg4 {[%clk 0:00:15.3]} 59. Nc8 {[%clk
0:00:17.9]} 59... Kxg3 {[%clk 0:00:14.1]} 60. Nd6 {[%clk 0:00:18.3]} 60... Bd5
{[%clk 0:00:09.2]} 61. Kxd3 {[%clk 0:00:17.9]} 61... Kf4 {[%clk 0:00:09.6]} 62.
Kd4 {[%clk 0:00:17.3]} 62... Ba8 {[%clk 0:00:08.6]} 63. Nc4 {[%clk 0:00:17.3]}
63... g4 {[%clk 0:00:08.7]} 64. Ne3 {[%clk 0:00:17.6]} 64... g3 {[%clk
0:00:08.8]} 65. b5 {[%clk 0:00:18]} 65... Kf3 {[%clk 0:00:08.7]} 66. b6 {[%clk
0:00:18.2]} 66... Bb7 {[%clk 0:00:09.2]} 67. Kd3 {[%clk 0:00:18]} 67... Bc8
{[%clk 0:00:08.5]} 68. Kd4 {[%clk 0:00:17.3]} 68... Ba6 {[%clk 0:00:08.7]} 69.
Nf5 {[%clk 0:00:17.3]} 69... g2 {[%clk 0:00:06.8]} 70. Nh4+ {[%clk 0:00:17.4]}
70... Kg3 {[%clk 0:00:07.3]} 71. Nxg2 {[%clk 0:00:18.3]} 71... Kxg2 {[%clk
0:00:08.2]} 72. Kc5 {[%clk 0:00:18.1]} 72... Kf3 {[%clk 0:00:08.8]} 73. Kb4
{[%clk 0:00:16.5]} 73... Ke4 {[%clk 0:00:08.6]} 74. Kxa4 {[%clk 0:00:16.9]}
74... Kd5 {[%clk 0:00:09]} 75. Kb4 {[%clk 0:00:17.3]} 1/2-1/2

[Event "*** Titled Tuesday Blitz"]
[Site "Chess.com"]
[Date "2020.04.14"]
[Round "4"]
[White "ninullia"]
[Black "MacDaddyMac"]
[Result "0-1"]
[WhiteElo "2446"]
[BlackElo "2300"]
[TimeControl "180+1"]
[EndTime "10:41:11 PDT"]
[Termination "MacDaddyMac won by checkmate"]

1. d4 {[%clk 0:02:59.3]} 1... Nf6 {[%clk 0:02:56.2]} 2. c4 {[%clk 0:02:59.2]}
2... e6 {[%clk 0:02:56.6]} 3. Nf3 {[%clk 0:02:58.2]} 3... b6 {[%clk 0:02:55.6]}
4. g3 {[%clk 0:02:58]} 4... Bb7 {[%clk 0:02:54.9]} 5. Bg2 {[%clk 0:02:57.9]}
5... Be7 {[%clk 0:02:53.7]} 6. O-O {[%clk 0:02:57.6]} 6... O-O {[%clk
0:02:53.9]} 7. Nc3 {[%clk 0:02:58]} 7... Ne4 {[%clk 0:02:53.2]} 8. Bd2 {[%clk
0:02:53.9]} 8... d6 {[%clk 0:02:36.8]} 9. d5 {[%clk 0:02:52.7]} 9... Nxd2 {[%clk
0:02:36.1]} 10. Qxd2 {[%clk 0:02:52.7]} 10... e5 {[%clk 0:02:36]} 11. e4 {[%clk
0:02:51]} 11... f5 {[%clk 0:02:30.2]} 12. Ne1 {[%clk 0:02:51.2]} 12... f4 {[%clk
0:02:29.9]} 13. f3 {[%clk 0:02:48.7]} 13... Nd7 {[%clk 0:02:16.7]} 14. Bh3
{[%clk 0:02:48.8]} 14... Bg5 {[%clk 0:02:14.3]} 15. Be6+ {[%clk 0:02:40]} 15...
Kh8 {[%clk 0:02:14.3]} 16. g4 {[%clk 0:02:32.3]} 16... Nc5 {[%clk 0:02:09.2]}
17. b4 {[%clk 0:02:05.8]} 17... Nxe6 {[%clk 0:02:08.3]} 18. dxe6 {[%clk
0:02:06.4]} 18... Rf6 {[%clk 0:01:43]} 19. c5 {[%clk 0:01:56.6]} 19... Rxe6
{[%clk 0:01:21.4]} 20. Rd1 {[%clk 0:01:52.4]} 20... dxc5 {[%clk 0:01:13.7]} 21.
bxc5 {[%clk 0:01:48.6]} 21... Qxd2 {[%clk 0:01:04.6]} 22. Rxd2 {[%clk 0:01:48]}
22... Ba6 {[%clk 0:01:04.9]} 23. Rff2 {[%clk 0:01:42.8]} 23... Bh4 {[%clk
0:01:05.1]} 24. Nc2 {[%clk 0:01:22.9]} 24... Bxf2+ {[%clk 0:01:01.6]} 25. Kxf2
{[%clk 0:01:23.8]} 25... Rc6 {[%clk 0:00:55.6]} 26. Nb4 {[%clk 0:00:53.6]} 26...
Rxc5 {[%clk 0:00:54.6]} 27. Ncd5 {[%clk 0:00:54.5]} 27... Bc4 {[%clk 0:00:40.1]}
28. Ne7 {[%clk 0:00:50.9]} 28... Bb5 {[%clk 0:00:20]} 29. h4 {[%clk 0:00:45.1]}
29... a5 {[%clk 0:00:20]} 30. Nbd5 {[%clk 0:00:43.9]} 30... Bc4 {[%clk
0:00:19.7]} 31. g5 {[%clk 0:00:38.2]} 31... Re8 {[%clk 0:00:17.1]} 32. h5 {[%clk
0:00:26]} 32... c6 {[%clk 0:00:16.4]} 33. Nxb6 {[%clk 0:00:22]} 33... Rxe7
{[%clk 0:00:16.3]} 34. Nxc4 {[%clk 0:00:22.2]} 34... Re8 {[%clk 0:00:16.4]} 35.
Nd6 {[%clk 0:00:19.8]} 35... Rf8 {[%clk 0:00:14.7]} 36. g6 {[%clk 0:00:16.9]}
36... h6 {[%clk 0:00:12.6]} 37. Nf7+ {[%clk 0:00:14.6]} 37... Kg8 {[%clk
0:00:12.9]} 38. Kg2 {[%clk 0:00:12.4]} 38... Rb5 {[%clk 0:00:12.4]} 39. Kh3
{[%clk 0:00:12.1]} 39... Rb1 {[%clk 0:00:11.7]} 40. Nxe5 {[%clk 0:00:06.8]}
40... Rh1+ {[%clk 0:00:11.1]} 41. Kg4 {[%clk 0:00:06.8]} 41... Rg1+ {[%clk
0:00:11.5]} 42. Kh3 {[%clk 0:00:06.9]} 42... Rg5 {[%clk 0:00:11.4]} 43. Nxc6
{[%clk 0:00:04.8]} 43... Rxh5+ {[%clk 0:00:11.5]} 44. Kg2 {[%clk 0:00:03.6]}
44... Rg5+ {[%clk 0:00:11.9]} 45. Kf2 {[%clk 0:00:04.5]} 45... Rxg6 {[%clk
0:00:12.5]} 46. Ne7+ {[%clk 0:00:04.5]} 46... Kh7 {[%clk 0:00:11.9]} 47. Nxg6
{[%clk 0:00:05.4]} 47... Kxg6 {[%clk 0:00:12.8]} 48. Rd6+ {[%clk 0:00:04.7]}
48... Kg5 {[%clk 0:00:13]} 49. Rd5+ {[%clk 0:00:05]} 49... Kh4 {[%clk
0:00:12.6]} 50. Rxa5 {[%clk 0:00:05.9]} 50... g5 {[%clk 0:00:12.9]} 51. Ra6
{[%clk 0:00:04.8]} 51... h5 {[%clk 0:00:13]} 52. Rb6 {[%clk 0:00:03]} 52... g4
{[%clk 0:00:13.4]} 53. Rb1 {[%clk 0:00:02.4]} 53... g3+ {[%clk 0:00:13]} 54. Kg2
{[%clk 0:00:02.9]} 54... Rd8 {[%clk 0:00:13.2]} 55. Rh1+ {[%clk 0:00:02.8]}
55... Kg5 {[%clk 0:00:13.3]} 56. a4 {[%clk 0:00:02.2]} 56... Rd2+ {[%clk
0:00:13.5]} 57. Kh3 {[%clk 0:00:02.4]} 57... Ra2 {[%clk 0:00:12.1]} 58. a5
{[%clk 0:00:01.7]} 58... Rxa5 {[%clk 0:00:12.1]} 59. Rc1 {[%clk 0:00:02.3]}
59... Rb5 {[%clk 0:00:10.8]} 60. Rd1 {[%clk 0:00:02.3]} 60... Rc5 {[%clk
0:00:09.4]} 61. Kg2 {[%clk 0:00:02.2]} 61... Rc2+ {[%clk 0:00:09.1]} 62. Kg1
{[%clk 0:00:02.7]} 62... Kh4 {[%clk 0:00:09]} 63. Ra1 {[%clk 0:00:01.6]} 63...
Kh3 {[%clk 0:00:09]} 64. Re1 {[%clk 0:00:01.3]} 64... h4 {[%clk 0:00:09.3]} 65.
e5 {[%clk 0:00:01.5]} 65... Rg2+ {[%clk 0:00:09.2]} 66. Kh1 {[%clk 0:00:01.6]}
66... Rh2+ {[%clk 0:00:09.5]} 67. Kg1 {[%clk 0:00:02]} 67... g2 {[%clk 0:00:10]}
68. Kf2 {[%clk 0:00:02.3]} 68... Rh1 {[%clk 0:00:08.3]} 69. Rg1 {[%clk
0:00:02.9]} 69... Rxg1 {[%clk 0:00:08.1]} 70. Kxg1 {[%clk 0:00:03.2]} 70... Kg3
{[%clk 0:00:08.6]} 71. e6 {[%clk 0:00:03.7]} 71... h3 {[%clk 0:00:09.5]} 72. e7
{[%clk 0:00:04.3]} 72... h2# {[%clk 0:00:10.4]} 0-1

[Event "*** Titled Tuesday Blitz"]
[Site "Chess.com"]
[Date "2020.04.14"]
[Round "4"]
[White "Elshan1985"]
[Black "Korchmar_Vasiliy"]
[Result "1/2-1/2"]
[WhiteElo "2692"]
[BlackElo "2526"]
[TimeControl "180+1"]
[EndTime "10:41:16 PDT"]
[Termination "Game drawn - insufficient material"]

1. Nf3 {[%clk 0:03:00.9]} 1... d5 {[%clk 0:02:59.8]} 2. d4 {[%clk 0:03:00.7]}
2... Nf6 {[%clk 0:02:59.3]} 3. Bf4 {[%clk 0:03:00]} 3... c5 {[%clk 0:02:59.1]}
4. c3 {[%clk 0:02:59.7]} 4... Nc6 {[%clk 0:02:59.4]} 5. e3 {[%clk 0:02:59.8]}
5... Qb6 {[%clk 0:02:59.4]} 6. Qb3 {[%clk 0:02:57.1]} 6... c4 {[%clk 0:02:59.6]}
7. Qc2 {[%clk 0:02:57.4]} 7... Bf5 {[%clk 0:02:59.3]} 8. Qc1 {[%clk 0:02:57.7]}
8... e6 {[%clk 0:02:59.5]} 9. Nbd2 {[%clk 0:02:56.5]} 9... h6 {[%clk 0:02:59.6]}
10. h3 {[%clk 0:02:56.9]} 10... Be7 {[%clk 0:02:59.4]} 11. b3 {[%clk 0:02:57.3]}
11... cxb3 {[%clk 0:02:55.7]} 12. axb3 {[%clk 0:02:58.2]} 12... O-O {[%clk
0:02:56]} 13. Be2 {[%clk 0:02:58.5]} 13... Rfc8 {[%clk 0:02:56.3]} 14. Qb2
{[%clk 0:02:58.5]} 14... a5 {[%clk 0:02:48.1]} 15. O-O {[%clk 0:02:53.6]} 15...
a4 {[%clk 0:02:28.5]} 16. b4 {[%clk 0:02:53.7]} 16... Nxb4 {[%clk 0:02:25.3]}
17. Rfc1 {[%clk 0:02:25.7]} 17... a3 {[%clk 0:01:42.3]} 18. Qb3 {[%clk
0:02:25.2]} 18... Qc6 {[%clk 0:01:39.6]} 19. Ne5 {[%clk 0:02:21.4]} 19... Qa4
{[%clk 0:01:27.7]} 20. Qxa4 {[%clk 0:01:41.6]} 20... Rxa4 {[%clk 0:01:28.6]} 21.
Bd1 {[%clk 0:01:41]} 21... Raa8 {[%clk 0:01:08]} 22. cxb4 {[%clk 0:01:40.1]}
22... Rxc1 {[%clk 0:01:08.9]} 23. Rxc1 {[%clk 0:01:39.8]} 23... a2 {[%clk
0:01:03.4]} 24. Nb3 {[%clk 0:01:37.5]} 24... Bb1 {[%clk 0:00:52.5]} 25. Bc2
{[%clk 0:01:19.4]} 25... Rc8 {[%clk 0:00:27.4]} 26. Rxb1 {[%clk 0:01:16.3]}
26... axb1=Q+ {[%clk 0:00:18]} 27. Bxb1 {[%clk 0:01:16.1]} 27... Rc3 {[%clk
0:00:18.9]} 28. Nd2 {[%clk 0:01:12.5]} 28... Bxb4 {[%clk 0:00:18.7]} 29. Bd3
{[%clk 0:01:05.4]} 29... Rxd3 {[%clk 0:00:11.8]} 30. Nxd3 {[%clk 0:01:06.3]}
30... Bxd2 {[%clk 0:00:12.3]} 31. Kf1 {[%clk 0:01:07.1]} 31... Kf8 {[%clk
0:00:09.5]} 32. Ke2 {[%clk 0:01:05.3]} 32... Ba5 {[%clk 0:00:09.1]} 33. Bd6+
{[%clk 0:01:03.6]} 33... Ke8 {[%clk 0:00:08.3]} 34. f3 {[%clk 0:01:03.7]} 34...
Nd7 {[%clk 0:00:08.1]} 35. e4 {[%clk 0:01:02.5]} 35... dxe4 {[%clk 0:00:04.4]}
36. fxe4 {[%clk 0:01:02.7]} 36... f6 {[%clk 0:00:05]} 37. Ke3 {[%clk 0:01:01.2]}
37... Kf7 {[%clk 0:00:04.9]} 38. d5 {[%clk 0:00:59.2]} 38... Bb6+ {[%clk
0:00:05.2]} 39. Kf3 {[%clk 0:00:57.7]} 39... Ba7 {[%clk 0:00:04.1]} 40. Nf4
{[%clk 0:00:55.7]} 40... exd5 {[%clk 0:00:04.3]} 41. exd5 {[%clk 0:00:56.1]}
41... b5 {[%clk 0:00:04]} 42. Ke4 {[%clk 0:00:54.2]} 42... Bc5 {[%clk 0:00:04]}
43. Bxc5 {[%clk 0:00:53.4]} 43... Nxc5+ {[%clk 0:00:04.9]} 44. Kd4 {[%clk
0:00:53.7]} 44... Nd7 {[%clk 0:00:05.2]} 45. Kc3 {[%clk 0:00:53.7]} 45... Ke7
{[%clk 0:00:05]} 46. Nh5 {[%clk 0:00:46.6]} 46... g6 {[%clk 0:00:04.5]} 47. Nf4
{[%clk 0:00:44.8]} 47... g5 {[%clk 0:00:04.1]} 48. Ne2 {[%clk 0:00:40.9]} 48...
Kd6 {[%clk 0:00:04.2]} 49. Kd4 {[%clk 0:00:41.3]} 49... b4 {[%clk 0:00:02.5]}
50. Ng3 {[%clk 0:00:40.4]} 50... Ke7 {[%clk 0:00:02]} 51. Nf5+ {[%clk
0:00:39.7]} 51... Kf7 {[%clk 0:00:02.5]} 52. Nxh6+ {[%clk 0:00:39.9]} 52... Kg6
{[%clk 0:00:03.4]} 53. Ng4 {[%clk 0:00:40.2]} 53... Kf5 {[%clk 0:00:02.2]} 54.
Nf2 {[%clk 0:00:35.2]} 54... Kf4 {[%clk 0:00:02.4]} 55. Nd3+ {[%clk 0:00:24.3]}
55... Kg3 {[%clk 0:00:02.8]} 56. Nxb4 {[%clk 0:00:24.4]} 56... Kxg2 {[%clk
0:00:03.4]} 57. d6 {[%clk 0:00:23.7]} 57... Kxh3 {[%clk 0:00:03.1]} 58. Kd5
{[%clk 0:00:24.1]} 58... g4 {[%clk 0:00:03.5]} 59. Ke6 {[%clk 0:00:24.4]} 59...
Nb6 {[%clk 0:00:03.9]} 60. Nd5 {[%clk 0:00:23.2]} 60... g3 {[%clk 0:00:03]} 61.
Nxb6 {[%clk 0:00:16.3]} 61... g2 {[%clk 0:00:03.5]} 62. d7 {[%clk 0:00:16.7]}
62... g1=Q {[%clk 0:00:04.4]} 63. d8=Q {[%clk 0:00:17.1]} 63... Qe1+ {[%clk
0:00:03.6]} 64. Kf7 {[%clk 0:00:16.3]} 64... Qh4 {[%clk 0:00:03.1]} 65. Qd3+
{[%clk 0:00:15.2]} 65... Qg3 {[%clk 0:00:03]} 66. Qf5+ {[%clk 0:00:14.8]} 66...
Qg4 {[%clk 0:00:03]} 67. Qf1+ {[%clk 0:00:14.2]} 67... Kh2 {[%clk 0:00:02.8]}
68. Nd5 {[%clk 0:00:11.7]} 68... Qh5+ {[%clk 0:00:03]} 69. Ke6 {[%clk
0:00:11.2]} 69... Qe5+ {[%clk 0:00:03.2]} 70. Kf7 {[%clk 0:00:10.6]} 70... Qxd5+
{[%clk 0:00:03.8]} 71. Kxf6 {[%clk 0:00:11]} 71... Qd6+ {[%clk 0:00:04.3]} 72.
Kg5 {[%clk 0:00:10.5]} 72... Qe5+ {[%clk 0:00:04.4]} 73. Qf5 {[%clk 0:00:10.1]}
73... Qg7+ {[%clk 0:00:04.5]} 74. Kf4 {[%clk 0:00:10.2]} 74... Qg3+ {[%clk
0:00:04.7]} 75. Ke4 {[%clk 0:00:10.2]} 75... Qg2+ {[%clk 0:00:05.2]} 76. Qf3
{[%clk 0:00:10]} 76... Qxf3+ {[%clk 0:00:05.4]} 77. Kxf3 {[%clk 0:00:10.3]}
1/2-1/2

[Event "*** Titled Tuesday Blitz"]
[Site "Chess.com"]
[Date "2020.04.14"]
[Round "4"]
[White "Blitzstream"]
[Black "Kavyev_Ruslan"]
[Result "1/2-1/2"]
[WhiteElo "2702"]
[BlackElo "2531"]
[TimeControl "180+1"]
[EndTime "10:41:18 PDT"]
[Termination "Game drawn by repetition"]

1. g4 {[%clk 0:03:00.9]} 1... d5 {[%clk 0:02:59.6]} 2. g5 {[%clk 0:03:00]} 2...
e5 {[%clk 0:02:59.5]} 3. d3 {[%clk 0:03:00.1]} 3... Nc6 {[%clk 0:02:56.3]} 4.
Bg2 {[%clk 0:03:00.2]} 4... Be6 {[%clk 0:02:55.6]} 5. h4 {[%clk 0:02:57.1]} 5...
Qd7 {[%clk 0:02:55]} 6. Nd2 {[%clk 0:02:47.2]} 6... O-O-O {[%clk 0:02:53.1]} 7.
e4 {[%clk 0:02:47.1]} 7... Nge7 {[%clk 0:02:47.6]} 8. Ne2 {[%clk 0:02:46.7]}
8... f5 {[%clk 0:02:43.5]} 9. gxf6 {[%clk 0:02:42.6]} 9... gxf6 {[%clk
0:02:43.3]} 10. c3 {[%clk 0:02:36.9]} 10... Rg8 {[%clk 0:02:42.3]} 11. Bf3
{[%clk 0:02:30.6]} 11... Bg4 {[%clk 0:02:38.7]} 12. Bxg4 {[%clk 0:02:29.2]}
12... Qxg4 {[%clk 0:02:39.3]} 13. Ng3 {[%clk 0:02:21.1]} 13... Bh6 {[%clk
0:02:37.5]} 14. Qxg4+ {[%clk 0:02:16.6]} 14... Rxg4 {[%clk 0:02:38.4]} 15. Ndf1
{[%clk 0:02:14.8]} 15... Bf4 {[%clk 0:02:27]} 16. Bxf4 {[%clk 0:01:46.2]} 16...
exf4 {[%clk 0:02:26.7]} 17. Nh5 {[%clk 0:01:34.6]} 17... Ng8 {[%clk 0:02:08.3]}
18. f3 {[%clk 0:00:43.9]} 18... Rg2 {[%clk 0:02:08]} 19. Rh2 {[%clk 0:00:44.1]}
19... Rxh2 {[%clk 0:01:58.6]} 20. Nxh2 {[%clk 0:00:45]} 20... dxe4 {[%clk
0:01:58.4]} 21. dxe4 {[%clk 0:00:44.4]} 21... f5 {[%clk 0:01:48.5]} 22. exf5
{[%clk 0:00:36.3]} 22... Nh6 {[%clk 0:01:47.3]} 23. f6 {[%clk 0:00:31.6]} 23...
Ne5 {[%clk 0:01:43.4]} 24. Nxf4 {[%clk 0:00:30.3]} 24... Rf8 {[%clk 0:01:33.9]}
25. O-O-O {[%clk 0:00:27.6]} 25... Rxf6 {[%clk 0:01:31.4]} 26. Nd5 {[%clk
0:00:27.9]} 26... Rf7 {[%clk 0:01:29.5]} 27. f4 {[%clk 0:00:27.3]} 27... Ng6
{[%clk 0:01:27.4]} 28. Nf3 {[%clk 0:00:25.1]} 28... c6 {[%clk 0:00:51.2]} 29.
Ng5 {[%clk 0:00:13.7]} 29... cxd5 {[%clk 0:00:51.2]} 30. Nxf7 {[%clk 0:00:13.6]}
30... Nxf7 {[%clk 0:00:52.1]} 31. Rxd5 {[%clk 0:00:12.5]} 31... Nxh4 {[%clk
0:00:37.8]} 32. Rh5 {[%clk 0:00:09.9]} 32... Ng2 {[%clk 0:00:37.3]} 33. Rxh7
{[%clk 0:00:08.9]} 33... Nd6 {[%clk 0:00:37.8]} 34. Rh8+ {[%clk 0:00:03]} 34...
Kd7 {[%clk 0:00:37.9]} 35. Rf8 {[%clk 0:00:03.4]} 35... Ke7 {[%clk 0:00:37.7]}
36. Ra8 {[%clk 0:00:03.5]} 36... a6 {[%clk 0:00:37.4]} 37. b3 {[%clk 0:00:03.9]}
37... Nxf4 {[%clk 0:00:37.3]} 38. c4 {[%clk 0:00:04.6]} 38... Kd7 {[%clk
0:00:35.7]} 39. Kd2 {[%clk 0:00:04.8]} 39... Kc6 {[%clk 0:00:35.3]} 40. Kc3
{[%clk 0:00:05.2]} 40... Ne6 {[%clk 0:00:35.3]} 41. Rh8 {[%clk 0:00:04.9]} 41...
a5 {[%clk 0:00:32.7]} 42. Rh6 {[%clk 0:00:05]} 42... Nc7 {[%clk 0:00:32.5]} 43.
a3 {[%clk 0:00:04.9]} 43... b5 {[%clk 0:00:30]} 44. cxb5+ {[%clk 0:00:02]} 44...
Nxb5+ {[%clk 0:00:30.3]} 45. Kb2 {[%clk 0:00:02.9]} 45... Kc5 {[%clk 0:00:29.7]}
46. Rh5+ {[%clk 0:00:03.5]} 46... Kb6 {[%clk 0:00:29.7]} 47. a4 {[%clk
0:00:03.7]} 47... Nc7 {[%clk 0:00:27.7]} 48. Ka3 {[%clk 0:00:04.3]} 48... Na6
{[%clk 0:00:27.1]} 49. Rh6 {[%clk 0:00:04.2]} 49... Kc6 {[%clk 0:00:27.5]} 50.
Rh5 {[%clk 0:00:04.8]} 50... Nb7 {[%clk 0:00:27.7]} 51. Rh6+ {[%clk 0:00:05.2]}
51... Nd6 {[%clk 0:00:27.9]} 52. Rh5 {[%clk 0:00:05.9]} 52... Kb6 {[%clk
0:00:27.2]} 53. Rh6 {[%clk 0:00:06.4]} 53... Kc7 {[%clk 0:00:27.5]} 54. Rh5
{[%clk 0:00:06.6]} 54... Nb7 {[%clk 0:00:27.3]} 55. Rh7+ {[%clk 0:00:07.1]}
55... Kb8 {[%clk 0:00:26.7]} 56. Rh8+ {[%clk 0:00:07.6]} 56... Ka7 {[%clk
0:00:27.1]} 57. Rh7 {[%clk 0:00:08.3]} 57... Nb4 {[%clk 0:00:27.5]} 58. Rg7
{[%clk 0:00:08.9]} 58... Kb6 {[%clk 0:00:27]} 59. Rg6+ {[%clk 0:00:09.1]} 59...
Kc7 {[%clk 0:00:25.4]} 60. Rg7+ {[%clk 0:00:09.5]} 60... Kc6 {[%clk 0:00:25.6]}
61. Rg6+ {[%clk 0:00:09.9]} 61... Nd6 {[%clk 0:00:26.1]} 62. Rh6 {[%clk
0:00:10.1]} 62... Kc5 {[%clk 0:00:21.9]} 63. Rh5+ {[%clk 0:00:10.1]} 63... Nd5
{[%clk 0:00:22.6]} 64. Rh8 {[%clk 0:00:08.8]} 64... Ne4 {[%clk 0:00:21.1]} 65.
Rc8+ {[%clk 0:00:08.5]} 65... Kb6 {[%clk 0:00:20.6]} 66. Rb8+ {[%clk 0:00:08.4]}
66... Kc6 {[%clk 0:00:21.1]} 67. Rc8+ {[%clk 0:00:08.5]} 67... Kb6 {[%clk
0:00:21.1]} 68. Rh8 {[%clk 0:00:09.1]} 68... Nb4 {[%clk 0:00:19.1]} 69. Rh6+
{[%clk 0:00:08.5]} 69... Kc5 {[%clk 0:00:18.9]} 70. Rh5+ {[%clk 0:00:08.1]}
70... Kb6 {[%clk 0:00:19.3]} 71. Rh6+ {[%clk 0:00:08]} 71... Kc5 {[%clk
0:00:19.6]} 72. Rh5+ {[%clk 0:00:07.9]} 72... Nd5 {[%clk 0:00:19.7]} 73. Rh8
{[%clk 0:00:06.6]} 73... Nec3 {[%clk 0:00:19.9]} 74. Rc8+ {[%clk 0:00:06.5]}
74... Kb6 {[%clk 0:00:20.2]} 75. Rb8+ {[%clk 0:00:06.7]} 75... Kc5 {[%clk
0:00:20.7]} 76. Rc8+ {[%clk 0:00:06.6]} 76... Kb6 {[%clk 0:00:21.3]} 77. Rb8+
{[%clk 0:00:07.1]} 77... Kc5 {[%clk 0:00:21.8]} 78. Rc8+ {[%clk 0:00:07.4]}
1/2-1/2